bitfinex-derivatives/quotes_SOLF0:USTF0_20250404
["timestamp","ask_amount","ask_price","bid_price","bid_amount"]
[1743790079876,0.06192194,122.46,122.45,8.1692]
[1743790080075,8.1674,122.49,122.46,8.1687]
[1743790080475,16.75984604,122.53,122.45,36.88]
[1743790080773,8.1682,122.48,122.45,36.88]
[1743790081176,8.22794236,122.48,122.45,45.10451594]
[1743790081682,8.1685,122.47,122.45,45.10451594]
[1743790081968,0.05974236,122.48,122.45,45.10451594]
[1743790082278,0.05974236,122.48,122.45,0.05521594]
[1743790082973,16.75984604,122.47,122.45,0.05521594]
[1743790083168,36.88,122.46,122.41,10.75]
[1743790083370,8.1717,122.42,122.41,10.75]
[1743790083570,53.63984604,122.42,122.39,42.33]
[1743790083768,8.173,122.4,122.39,22.32]
[1743790084883,8.1737,122.39,122.38,0.02039498]
[1743790085380,8.1733,122.4,122.38,0.02039498]
[1743790085582,0.05986957,122.41,122.38,0.02039498]
[1743790085981,8.173,122.4,122.38,0.02039498]
[1743790086282,0.05986957,122.41,122.38,0.02039498]
[1743790086582,8.1737,122.39,122.38,0.02039498]
[1743790087379,8.1761,122.36,122.34,1.90796459]
[1743790087575,16.75984604,122.38,122.34,1.90796459]
[1743790087882,8.174,122.39,122.34,1.90796459]
[1743790088073,53.63984604,122.42,122.34,1.90796459]
[1743790088380,61.81184604,122.42,122.34,38.78796459]
[1743790088579,0.06280178,122.39,122.34,55.54781063]
[1743790088773,53.63984604,122.46,122.36,16.75984604]
[1743790088976,8.1706,122.44,122.4,8.1728]
[1743790089175,293.8,122.47,122.4,36.88]
[1743790089378,16.75984604,122.5,122.43,8.1709]
[1743790089586,16.75984604,122.5,122.44,36.88]
[1743790090080,8.1683,122.47,122.46,0.0600014]
[1743790094291,8.1706,122.44,122.41,36.88]
[1743790094775,8.1714,122.43,122.41,36.88]
[1743790094975,16.75984604,122.44,122.38,24.23]
[1743790095184,16.75984604,122.42,122.37,8.7758]
[1743790095372,8.1757,122.36,122.35,4.5502]
[1743790095781,16.75984604,122.4,122.34,1.90796459]
[1743790095782,0.05814607,122.37,122.34,1.90796459]
[1743790096783,16.75984604,122.36,122.34,1.90796459]
[1743790097287,8.1763,122.35,122.34,1.90796459]
[1743790097989,8.177,122.34,122.33,9.475e-05]
[1743790099290,8.1777,122.33,122.32,4.401e-05]
[1743790099586,26.95887573,122.34,122.31,89.74170298]
[1743790099887,27.02127495,122.34,122.31,89.74170298]
[1743790101188,8.1783,122.32,122.31,89.74170298]
[1743790102087,8.178,122.33,122.31,89.74170298]
[1743790102282,0.06239922,122.34,122.31,89.74170298]
[1743790102690,8.23969922,122.34,122.31,89.74170298]
[1743790102878,27.02127495,122.34,122.31,89.74170298]
[1743790103083,8.1783,122.32,122.31,89.74170298]
[1743790105890,36.94239922,122.34,122.31,89.74170298]
[1743790106095,0.06239922,122.34,122.31,89.74170298]
[1743790106393,8.1783,122.32,122.31,89.74170298]
[1743790110599,8.18,122.32,122.29,9.7e-06]
[1743790110899,26.95887573,122.3,122.27,2.2305502]
[1743790111109,8.181,122.28,122.27,2.2305502]
[1743790111390,36.88,122.29,122.26,2.09184238]
[1743790113002,8.1806,122.29,122.26,2.09184238]
[1743790113197,294.372677,122.3,122.26,2.09184238]
[1743790113407,27.01155273,122.3,122.26,2.09184238]
[1743790113703,27.01155273,122.3,122.25,2.12080121]
[1743790113704,8.1823,122.26,122.25,2.12080121]
[1743790113892,45.0423,122.26,122.25,2.12080121]
[1743790117699,61.91713412,122.26,122.25,2.12080121]
[1743790118006,53.73483412,122.26,122.23,1.80549036]
[1743790118208,16.87483412,122.24,122.21,2.0943278]
[1743790118504,16.87483412,122.22,122.17,32.38948465]
[1743790118805,36.86,122.21,122.17,32.38948465]
[1743790119106,45.0457,122.21,122.17,32.38948465]
[1743790119401,8.1864,122.2,122.17,32.38948465]
[1743790119593,25.06123412,122.2,122.17,32.38948465]
[1743790120297,8.187,122.19,122.17,1.80128465]
[1743790121205,0.06159186,122.21,122.17,1.80128465]
[1743790121402,16.87483412,122.24,122.17,1.80128465]
[1743790121707,8.1853,122.22,122.18,10.24248138]
[1743790121897,16.87483412,122.24,122.18,2.05538138]
[1743790122096,53.73483412,122.26,122.19,36.86]
[1743790122302,8.1842,122.24,122.21,8.1856]
[1743790122507,16.93296517,122.24,122.21,0.05992402]
[1743790122706,8.185,122.22,122.21,0.05992402]
[1743790122901,25.05983412,122.22,122.21,0.05992402]
[1743790123101,16.87483412,122.22,122.18,2.05538138]
[1743790123301,8.187,122.19,122.18,2.05538138]
[1743790125206,0.05644354,122.2,122.18,2.05538138]
[1743790125410,36.86,122.25,122.18,2.05538138]
[1743790125711,8.1844,122.23,122.2,8.186]
[1743790125907,8.1844,122.23,122.18,2.05538138]
[1743790126211,8.1851,122.22,122.19,8.1864]
[1743790126406,0.06264429,122.22,122.19,0.05553049]
[1743790126608,36.86,122.25,122.19,0.05553049]
[1743790127012,8.1854,122.22,122.19,8.24203049]
[1743790127306,8.1854,122.22,122.19,0.05553049]
[1743790127511,8.1847,122.23,122.19,0.05553049]
[1743790127711,0.0593258,122.22,122.19,0.05553049]
[1743790127909,0.0593258,122.22,122.2,8.1859]
[1743790128918,8.2445258,122.22,122.2,8.1859]
[1743790129109,0.0593258,122.22,122.2,8.1859]
[1743790130316,26.99996595,122.28,122.2,36.86]
[1743790130511,294.56,122.29,122.2,36.86]
[1743790130816,31.15496595,122.31,122.24,8.1836]
[1743790131019,68.01496595,122.31,122.24,8.1836]
[1743790131210,63.85996595,122.31,122.24,8.1836]
[1743790131517,0.05693818,122.29,122.26,0.06217504]
[1743790132822,26.99996595,122.36,122.26,0.06217504]
[1743790133027,26.99996595,122.36,122.24,36.84]
[1743790133229,8.1795,122.31,122.28,8.1804]
[1743790133415,26.99996595,122.36,122.29,36.84]
[1743790133926,8.1797,122.3,122.29,36.84]
[1743790136537,8.1803,122.29,122.28,0.05941103]
[1743790137427,8.1798,122.3,122.28,0.05941103]
[1743790137730,0.05369485,122.31,122.28,0.05941103]
[1743790137932,8.1803,122.29,122.28,0.05941103]
[1743790140638,8.1799,122.3,122.28,0.05941103]
[1743790140839,0.05369485,122.31,122.28,0.05941103]
[1743790141136,8.1803,122.29,122.28,0.05941103]
[1743790141742,339.46,122.29,122.21,28.93]
[1743790142037,26.99996595,122.27,122.21,28.93]
[1743790142234,358.27996595,122.29,122.21,28.93]
[1743790142435,16.3548,122.34,122.21,391.93]
[1743790142629,8.1813,122.28,122.21,391.93]
[1743790142833,0.05639488,122.29,122.26,0.05453236]
[1743790143033,26.99996595,122.33,122.21,391.93]
[1743790143231,0.06224165,122.29,122.26,0.0617203]
[1743790144945,8.1817,122.27,122.26,0.0617203]
[1743790148239,8.1848,122.23,122.21,28.93]
[1743790148541,8.1848,122.23,122.2,67.38]
[1743790149153,8.184,122.24,122.2,36.8]
[1743790149356,0.05915065,122.23,122.2,36.85224271]
[1743790151449,16.8707041,122.28,122.2,36.85224271]
[1743790151748,16.8707041,122.26,122.19,49.5765]
[1743790151948,8.185,122.22,122.21,28.47]
[1743790153048,0.06211305,122.23,122.21,28.47]
[1743790153350,16.93281715,122.23,122.21,28.47]
[1743790153740,8.185,122.22,122.21,28.47]
[1743790154458,36.78,122.22,122.18,2.05538138]
[1743790154658,16.8707041,122.21,122.18,2.05538138]
[1743790154953,16.8707041,122.19,122.18,2.05538138]
[1743790155351,25.0577041,122.19,122.18,2.05538138]
[1743790155555,8.187,122.19,122.18,2.05538138]
[1743790156652,8.1877,122.18,122.17,1.85365649]
[1743790158151,8.1884,122.17,122.16,2.00234427]
[1743790158559,16.8707041,122.18,122.15,2.05989907]
[1743790158764,16.8707041,122.16,122.14,22.16021505]
[1743790158953,16.8707041,122.16,122.13,2.17224877]
[1743790159256,16.8707041,122.14,122.12,2.03996074]
[1743790159655,8.1911,122.13,122.12,2.03996074]
[1743790160653,25.0624041,122.12,122.11,2.13247157]
[1743790161158,16.8707041,122.12,122.08,1.89510743]
[1743790161558,8.1937,122.09,122.08,1.89510743]
[1743790161945,25.12472627,122.1,122.08,1.89510743]
[1743790162158,0.06082217,122.1,122.08,1.89510743]
[1743790162751,294.6,122.15,122.08,1.89510743]
[1743790163249,8.1911,122.13,122.09,8.1934]
[1743790163561,8.1918,122.12,122.09,8.1934]
[1743790163744,294.6,122.15,122.08,10.08920743]
[1743790163947,294.6,122.15,122.09,0.06007369]
[1743790163948,0.05192828,122.12,122.09,0.06007369]
[1743790164663,8.1931,122.1,122.09,0.06007369]
[1743790166369,0.05192828,122.12,122.09,0.06007369]
[1743790166761,0.05192828,122.12,122.09,8.25347369]
[1743790166956,0.05192828,122.12,122.09,0.06007369]
[1743790167271,0.05192828,122.12,122.1,36.78]
[1743790168159,294.6,122.15,122.1,36.78]
[1743790168359,8.1908,122.14,122.11,12.5696]
[1743790168559,294.6,122.15,122.11,4.3775]
[1743790169255,0.06264899,122.14,122.11,4.3775]
[1743790169564,315.9530041,122.2,122.12,0.05860664]
[1743790169870,311.6307041,122.2,122.11,4.3775]
[1743790170067,311.6307041,122.2,122.11,21.2482041]
[1743790170568,311.6307041,122.2,122.13,8.1909]
[1743790170773,0.05669746,122.17,122.14,0.05757207]
[1743790171075,8.1894,122.16,122.14,0.05757207]
[1743790171263,0.05669746,122.17,122.14,0.05757207]
[1743790171571,8.1897,122.15,122.14,0.05757207]
[1743790171956,8.1897,122.15,122.14,7.207e-05]
[1743790172271,27.09223258,122.17,122.09,4.2033]
[1743790172462,4.5527,122.16,122.09,4.2033]
[1743790172662,8.193,122.11,122.09,4.2033]
[1743790173272,0.05651905,122.11,122.09,4.25793273]
[1743790173572,27.03553512,122.17,122.09,4.25793273]
[1743790173758,8.1907,122.14,122.11,8.1921]
[1743790173955,27.03553512,122.17,122.09,4.2033]
[1743790174258,8.1899,122.15,122.09,4.2033]
[1743790174662,0.05610934,122.13,122.11,0.06106197]
[1743790174870,8.1894,122.16,122.12,36.78]
[1743790175070,298.9533,122.2,122.12,36.78]
[1743790175271,298.9533,122.2,122.13,8.1907]
[1743790175772,8.1895,122.16,122.13,8.1907]
[1743790176073,8.1895,122.16,122.15,0.05922]
[1743790176564,336.0476,122.21,122.15,0.05922]
[1743790176565,0.05864672,122.17,122.15,0.05922]
[1743790176764,294.78,122.21,122.16,36.76]
[1743790176974,27.03553512,122.25,122.16,41.062]
[1743790177162,8.1853,122.22,122.19,8.1866]
[1743790177765,8.1853,122.22,122.2,8.1863]
[1743790177968,8.23876119,122.22,122.2,8.1863]
[1743790178270,8.23876119,122.22,122.19,0.06187095]
[1743790178576,0.05346119,122.22,122.19,0.06187095]
[1743790178776,27.03553512,122.28,122.2,36.76]
[1743790179367,27.03553512,122.28,122.21,8.1854]
[1743790179566,27.03553512,122.28,122.2,36.76]
[1743790179871,0.06005413,122.25,122.23,0.05158052]
[1743790180273,8.1837,122.24,122.23,0.05158052]
[1743790180575,0.06005413,122.25,122.23,0.05158052]
[1743790180872,8.1837,122.24,122.23,0.05158052]
[1743790181076,0.06005413,122.25,122.23,0.05158052]
[1743790182470,8.182,122.27,122.24,36.74]
[1743790182675,8.182,122.27,122.24,44.9234]
[1743790183467,8.23603764,122.27,122.24,44.97718086]
[1743790183978,0.05403764,122.27,122.25,8.1829]
[1743790184273,0.05403764,122.27,122.25,8.8924]
[1743790185861,0.05403764,122.27,122.26,8.1823]
[1743790186771,358.33553512,122.37,122.26,8.18]
[1743790187070,358.33553512,122.37,122.25,8.8924]
[1743790187276,358.33553512,122.37,122.29,8.18]
[1743790187467,8.1786,122.32,122.29,44.9]
[1743790187668,8.1786,122.32,122.29,36.72]
[1743790187868,8.1791,122.31,122.29,36.78173587]
[1743790188066,0.05282552,122.32,122.29,36.78173587]
[1743790188481,0.05282552,122.32,122.29,0.06173587]
[1743790189074,8.1794,122.31,122.29,0.06173587]
[1743790189276,0.05282552,122.32,122.29,0.06173587]
[1743790189479,8.1797,122.3,122.29,0.06173587]
[1743790189871,0.05282552,122.32,122.29,0.06173587]
[1743790193479,0.05282552,122.32,122.17,38.10302188]
[1743790193480,36.68,122.31,122.17,38.10302188]
[1743790193672,27.03553512,122.29,122.19,12.7122]
[1743790193872,321.51553512,122.29,122.19,12.7122]
[1743790194075,8.1854,122.22,122.19,12.7122]
[1743790194386,36.68,122.27,122.19,12.7122]
[1743790194570,0.06282889,122.22,122.19,12.76682886]
[1743790194774,36.68,122.27,122.19,12.77316169]
[1743790194975,36.68,122.27,122.19,12.7122]
[1743790195676,8.186,122.21,122.19,12.7122]
[1743790195880,0.06063118,122.24,122.22,0.05631732]
[1743790196081,8.1847,122.23,122.2,8.1863]
[1743790196381,0.05479495,122.24,122.22,0.05516285]
[1743790197087,8.1844,122.23,122.22,0.05516285]
[1743790197289,63.71553512,122.23,122.13,1.42380787]
[1743790197480,4.2737,122.22,122.11,9.0556]
[1743790197786,298.7737,122.22,122.11,9.0556]
[1743790197978,298.7737,122.22,122.11,45.7356]
[1743790198387,8.1903,122.15,122.12,18.92]
[1743790198683,8.1903,122.15,122.12,18.98073228]
[1743790198883,0.05856541,122.15,122.12,18.98073228]
[1743790200489,294.5,122.22,122.12,18.98073228]
[1743790200678,294.5,122.22,122.12,18.92]
[1743790201287,8.1878,122.18,122.15,8.1897]
[1743790201585,0.0619042,122.18,122.16,36.73987673]
[1743790201780,8.1864,122.2,122.17,8.188]
[1743790201973,4.9084,122.27,122.16,36.73987673]
[1743790202174,4.9084,122.27,122.17,8.8133]
[1743790202374,8.1846,122.23,122.2,8.1863]
[1743790202584,4.9084,122.27,122.17,8.8133]
[1743790202782,8.1857,122.22,122.17,8.8133]
[1743790202985,0.05178813,122.23,122.17,8.8133]
[1743790203185,0.05178813,122.23,122.18,0.05727385]
[1743790203375,0.05178813,122.23,122.18,8.24497385]
[1743790203873,8.186,122.21,122.18,8.24497385]
[1743790204073,0.05178813,122.23,122.18,0.05727385]
[1743790204691,0.05178813,122.23,122.22,8.185]
[1743790204883,0.05178813,122.23,122.22,44.865]
[1743790206190,294.56,122.28,122.24,8.1833]
[1743790206490,36.66,122.3,122.24,8.1833]
[1743790206982,36.66,122.3,122.23,4.5279]
[1743790207183,36.66,122.3,122.22,36.68]
[1743790207386,8.1835,122.25,122.22,44.865]
[1743790207586,36.66,122.3,122.25,0.05990194]
[1743790207785,0.05992028,122.25,122.22,36.68]
[1743790208090,0.05756189,122.25,122.22,36.68]
[1743790208286,0.05756189,122.25,122.22,36.73854927]
[1743790208882,0.05756189,122.25,122.22,0.05854927]
[1743790209083,27.03553512,122.23,122.17,36.66]
[1743790209281,27.03553512,122.23,122.16,5.93]
[1743790209481,8.1874,122.19,122.16,5.93]
[1743790209676,27.03553512,122.23,122.16,5.93]
[1743790209890,9.3116,122.25,122.15,36.66]
[1743790210280,0.06204577,122.21,122.19,0.05584483]
[1743790211395,0.06204577,122.21,122.19,36.71584483]
[1743790211596,0.06204577,122.21,122.2,8.1864]
[1743790211980,0.06204577,122.21,122.19,36.71584483]
[1743790212184,8.24814577,122.21,122.19,36.71584483]
[1743790212381,0.06204577,122.21,122.19,0.05584483]
[1743790212694,8.1894,122.16,122.13,53.528]
[1743790213086,27.03553512,122.21,122.13,45.3372]
[1743790213288,8.1883,122.18,122.14,8.19]
[1743790213490,36.64,122.22,122.14,14.11]
[1743790213699,27.03553512,122.2,122.14,14.11]
[1743790213885,8.1883,122.18,122.17,0.05355841]
[1743790215798,0.05686307,122.19,122.17,0.05355841]
[1743790215799,8.24406307,122.19,122.17,0.05355841]
[1743790216099,8.1877,122.18,122.17,0.05355841]
[1743790217199,8.1897,122.15,122.14,5.92]
[1743790217706,8.1893,122.16,122.11,23.1721]
[1743790217894,27.03553512,122.2,122.11,23.1721]
[1743790218501,0.052043,122.17,122.14,0.05710652]
[1743790218799,8.1897,122.15,122.14,0.05710652]
[1743790220703,0.052043,122.17,122.14,0.05710652]
[1743790220893,0.052043,122.17,122.15,8.1892]
[1743790221093,8.240543,122.17,122.14,0.05710652]
[1743790221301,8.240543,122.17,122.14,8.24710652]
[1743790222094,0.052043,122.17,122.14,0.05710652]
[1743790222494,8.1897,122.15,122.14,0.05710652]
[1743790222693,0.052043,122.17,122.14,0.05710652]
[1743790223196,0.052043,122.17,122.14,8.24690652]
[1743790223397,0.052043,122.17,122.14,0.05710652]
[1743790223700,8.189,122.16,122.14,0.05710652]
[1743790224402,8.240643,122.17,122.14,8.24750652]
[1743790224600,0.052043,122.17,122.14,0.05710652]
[1743790225604,8.1894,122.16,122.14,0.05710652]
[1743790225999,0.052043,122.17,122.14,0.05710652]
[1743790226904,321.57553512,122.26,122.14,0.05710652]
[1743790227103,8.1854,122.22,122.18,8.1871]
[1743790227505,40.9702,122.25,122.17,36.64]
[1743790227807,4.3302,122.25,122.17,36.64]
[1743790228004,298.7453,122.26,122.17,36.64]
[1743790228201,0.0529163,122.22,122.21,8.1857]
[1743790228405,0.7619,122.28,122.18,4.2992]
[1743790228606,0.06160058,122.23,122.2,0.05229373]
[1743790228810,8.1877,122.19,122.17,36.64]
[1743790229105,36.62,122.25,122.2,0.05429272]
[1743790229306,0.05180388,122.19,122.17,36.64]
[1743790229493,8.1874,122.19,122.17,36.64]
[1743790229807,8.24636221,122.19,122.17,36.69717323]
[1743790230007,0.05896221,122.19,122.17,44.88517323]
[1743790230406,0.05896221,122.19,122.17,36.69717323]
[1743790230709,8.24636221,122.19,122.17,36.69717323]
[1743790231802,8.24636221,122.19,122.17,44.88537323]
[1743790232003,8.24636221,122.19,122.17,36.69717323]
[1743790232304,8.1877,122.18,122.17,36.69717323]
[1743790232608,0.05896221,122.19,122.17,36.69717323]
[1743790232901,8.24626221,122.19,122.17,36.69717323]
[1743790233110,0.05896221,122.19,122.17,44.88517323]
[1743790233309,0.05896221,122.19,122.17,36.69717323]
[1743790233709,0.05896221,122.19,122.18,8.1877]
[1743790234102,16.3635,122.27,122.17,36.69717323]
[1743790234307,37.3819,122.28,122.17,36.64]
[1743790234709,8.1861,122.21,122.18,8.1872]
[1743790234908,37.3819,122.28,122.17,36.64]
[1743790235205,16.3636,122.27,122.17,44.828]
[1743790235411,0.05763312,122.24,122.21,0.05777615]
[1743790237111,8.185,122.22,122.21,0.05777615]
[1743790237600,374.70116824,122.24,122.14,16.8536]
[1743790237805,4.386,122.23,122.14,53.4536]
[1743790238003,4.386,122.23,122.14,45.2635]
[1743790238405,331.24,122.24,122.15,18.98]
[1743790238709,0.05933364,122.21,122.18,0.05932008]
[1743790238904,0.05933364,122.21,122.18,36.65932008]
[1743790239299,8.24503364,122.21,122.19,8.1867]
[1743790240103,8.24503364,122.21,122.18,36.65932008]
[1743790240300,0.05933364,122.21,122.18,36.65932008]
[1743790241312,8.1837,122.25,122.22,8.1846]
[1743790241710,4.386,122.27,122.2,8.787]
[1743790242212,0.06269866,122.25,122.22,0.06098693]
[1743790242411,8.1837,122.24,122.22,0.06098693]
[1743790242612,0.06269866,122.25,122.22,0.06098693]
[1743790243316,8.1844,122.23,122.22,0.06098693]
[1743790244003,0.06269866,122.25,122.15,18.98]
[1743790244202,27.03553512,122.24,122.15,63.7494]
[1743790244406,8.1888,122.17,122.15,63.7494]
[1743790245218,4.3258,122.23,122.15,55.61579407]
[1743790245516,36.58,122.26,122.15,55.56]
[1743790245713,40.9058,122.26,122.15,55.56]
[1743790246407,0.05368957,122.22,122.19,0.0595241]
[1743790246713,8.1862,122.21,122.19,0.0595241]
[1743790246916,0.05368957,122.22,122.19,0.0595241]
[1743790247319,8.1864,122.2,122.19,0.0595241]
[1743790249420,331.23368957,122.22,122.15,55.54]
[1743790249617,331.18,122.22,122.15,63.7297]
[1743790249920,331.18,122.22,122.15,55.54]
[1743790250217,331.18,122.22,122.15,18.98]
[1743790250218,347.5503,122.22,122.15,18.98]
[1743790250419,0.05681931,122.2,122.17,0.05732452]
[1743790250823,8.1877,122.18,122.17,0.05732452]
[1743790251613,4.36521931,122.2,122.15,18.98]
[1743790252015,8.189,122.16,122.15,18.98]
[1743790252215,4.2063,122.21,122.15,18.98]
[1743790252418,294.62,122.22,122.15,18.98]
[1743790252712,0.05304318,122.19,122.17,0.05659947]
[1743790252912,0.05304318,122.19,122.17,36.61659947]
[1743790253114,295.572,122.27,122.17,36.61659947]
[1743790253323,299.0883,122.27,122.17,36.56]
[1743790253521,299.0883,122.27,122.18,27.03553512]
[1743790253722,299.0883,122.27,122.21,8.1854]
[1743790253921,299.0883,122.27,122.21,36.56]
[1743790254117,11.32173319,122.29,122.24,8.1836]
[1743790254322,0.05275902,122.25,122.23,0.05585127]
[1743790254529,68.97583512,122.31,122.23,0.05585127]
[1743790254823,8.1829,122.26,122.21,36.56]
[1743790255018,0.0605898,122.28,122.21,63.59553512]
[1743790255219,8.1803,122.29,122.26,8.1823]
[1743790255424,294.64,122.32,122.26,44.7423]
[1743790255625,0.0579424,122.29,122.26,44.80423191]
[1743790255922,0.0579424,122.29,122.26,36.62193191]
[1743790256121,45.28693278,122.33,122.26,36.62193191]
[1743790256325,8.1789,122.32,122.29,8.1799]
[1743790256824,45.28693278,122.33,122.26,36.56]
[1743790257027,8.1792,122.31,122.28,8.1807]
[1743790257225,0.05743063,122.31,122.28,8.23559685]
[1743790258033,0.05743063,122.31,122.29,8.1803]
[1743790258334,0.05743063,122.31,122.28,0.05489685]
[1743790258632,0.05743063,122.31,122.28,8.81479685]
[1743790259128,8.1801,122.3,122.28,8.81479685]
[1743790259324,0.05743063,122.31,122.28,8.81479685]
[1743790259723,0.05743063,122.31,122.28,16.99559685]
[1743790259921,0.05743063,122.31,122.28,8.81479685]
[1743790260124,8.1803,122.29,122.28,0.05489685]
[1743790263636,0.05743063,122.31,122.28,8.23549685]
[1743790263832,0.05743063,122.31,122.28,0.05489685]
[1743790264140,8.1773,122.34,122.31,8.1788]
[1743790264331,8.1773,122.34,122.31,44.6788]
[1743790264522,4.3462,122.4,122.31,36.5]
[1743790264834,86.95373278,122.42,122.33,8.1773]
[1743790265039,50.45373278,122.42,122.31,36.5]
[1743790265227,0.05294256,122.39,122.36,0.05422205]
[1743790265434,0.05294256,122.39,122.36,36.55422205]
[1743790267239,0.05294256,122.39,122.36,44.72952205]
[1743790267541,0.05294256,122.39,122.36,36.55422205]
[1743790267837,8.1749,122.38,122.36,36.55422205]
[1743790268338,8.172,122.42,122.36,71.76975717]
[1743790268542,8.172,122.42,122.36,63.53553512]
[1743790268840,8.1724,122.41,122.36,63.53553512]
[1743790269040,310.6967,122.48,122.36,63.53553512]
[1743790269334,27.03553512,122.46,122.37,36.48]
[1743790269542,0.06144552,122.43,122.41,5.261e-05]
[1743790270230,8.1722,122.42,122.41,5.261e-05]
[1743790271944,8.1798,122.3,122.27,18.99]
[1743790272242,63.49553512,122.33,122.24,4.5757]
[1743790272439,36.46,122.32,122.24,4.5757]
[1743790272642,40.6341,122.32,122.24,4.5757]
[1743790273343,0.06070111,122.3,122.28,0.05458658]
[1743790273943,8.1803,122.29,122.28,0.05458658]
[1743790275940,0.06070111,122.3,122.28,0.05458658]
[1743790276147,294.3,122.38,122.28,0.05458658]
[1743790276341,8.1753,122.37,122.28,0.05458658]
[1743790276538,63.49553512,122.4,122.27,40.22003512]
[1743790276847,8.1768,122.35,122.3,8.1793]
[1743790277138,36.46,122.4,122.3,36.46]
[1743790277341,0.05926451,122.34,122.31,0.05527363]
[1743790277544,0.05926451,122.34,122.3,36.46]
[1743790277942,0.05926451,122.34,122.31,8.23630249]
[1743790278147,0.05926451,122.34,122.31,0.05760249]
[1743790279644,0.05926451,122.34,122.32,8.178]
[1743790280149,0.05926451,122.34,122.31,8.23640249]
[1743790280549,0.05926451,122.34,122.31,0.05760249]
[1743790280753,0.05926451,122.34,122.33,8.1777]
[1743790281051,36.46,122.4,122.31,0.05760249]
[1743790281351,36.46,122.4,122.3,42.3]
[1743790281846,36.46,122.4,122.3,5.84]
[1743790282045,43.78096488,122.38,122.3,5.84]
[1743790282247,0.05925835,122.36,122.34,0.05560226]
[1743790282957,8.1763,122.35,122.34,0.05560226]
[1743790283444,330.77925835,122.36,122.3,5.84]
[1743790283641,43.78096488,122.35,122.3,5.84]
[1743790283850,48.07366488,122.35,122.3,5.84]
[1743790284047,43.78096488,122.32,122.23,4.4063]
[1743790284251,36.44,122.31,122.23,4.4063]
[1743790284451,8.1823,122.26,122.22,4.1848]
[1743790284654,8.1823,122.26,122.19,4.4063]
[1743790284841,36.44,122.27,122.24,0.06276094]
[1743790285043,43.78096488,122.26,122.16,40.6248]
[1743790285454,8.1874,122.19,122.16,4.1848]
[1743790285652,36.44,122.22,122.16,4.1848]
[1743790286150,0.05146838,122.2,122.18,8.24030724]
[1743790286350,0.05146838,122.2,122.18,0.05310724]
[1743790290261,8.187,122.19,122.18,0.05310724]
[1743790292162,0.05146838,122.2,122.18,0.05310724]
[1743790293461,8.187,122.19,122.18,0.05310724]
[1743790293955,8.188,122.18,122.13,8.1904]
[1743790294155,36.44,122.2,122.12,36.44]
[1743790294555,8.1873,122.19,122.15,8.1897]
[1743790294853,8.1873,122.19,122.12,36.44]
[1743790295167,8.24466899,122.18,122.16,0.05883026]
[1743790295460,0.05656899,122.18,122.16,0.05883026]
[1743790295680,8.1884,122.17,122.16,0.05883026]
[1743790297063,8.24456899,122.18,122.16,0.05883026]
[1743790297263,0.05656899,122.18,122.16,0.05883026]
[1743790297568,8.24476899,122.18,122.16,0.05883026]
[1743790297769,0.05656899,122.18,122.16,0.05883026]
[1743790298161,8.1884,122.17,122.16,0.05883026]
[1743790299769,0.05656899,122.18,122.16,0.05883026]
[1743790299961,8.24456899,122.18,122.16,0.05883026]
[1743790301072,0.05656899,122.18,122.16,8.24783026]
[1743790302069,0.05656899,122.18,122.17,8.1884]
[1743790302772,1.42453641,122.26,122.21,8.1853]
[1743790303075,27.02273787,122.26,122.21,36.44]
[1743790303371,8.185,122.22,122.21,36.44]
[1743790303573,27.02273787,122.26,122.17,4.3526]
[1743790303965,0.05881104,122.23,122.2,0.0583366]
[1743790304476,8.1857,122.21,122.2,0.0583366]
[1743790305477,8.1854,122.22,122.2,0.0583366]
[1743790305778,0.05881104,122.23,122.2,0.0583366]
[1743790305979,8.1857,122.21,122.2,0.0583366]
[1743790307361,8.1855,122.22,122.2,0.0583366]
[1743790307975,0.05881104,122.23,122.2,0.0583366]
[1743790308277,27.08154891,122.23,122.17,19.41]
[1743790308476,8.1877,122.18,122.17,19.41]
[1743790308672,44.6277,122.18,122.17,19.41]
[1743790309186,8.1874,122.19,122.17,19.41]
[1743790309477,36.42,122.18,122.17,19.46829119]